[Event "6e Open International d'Echecs des Sable"]
[Site "Sables d'Olonne, France"]
[Date "2019.07.16"]
[Round "5.7"]
[White "Sempe, Pierre"]
[Black "Vidal, Llewellyn"]
[Result "0-1"]
[ECO "B11"]
[WhiteElo "1765"]
[BlackElo "2336"]
[Annotator "jeanluc"]
[PlyCount "72"]
[EventDate "2019.??.??"]
[TimeControl "1/40:0"]
[WhiteClock "0:34:25"]
[BlackClock "1:04:21"]

1. e4 {[%emt 0:00:00]} c6 {[%emt 0:00:00]} 2. Nf3 {[%emt 0:00:00]} d5 {[%emt 0:
00:00]} 3. Nc3 {[%emt 0:00:00]} Bg4 {[%emt 0:00:00]} 4. h3 {[%emt 0:00:00]}
Bxf3 {[%emt 0:00:00]} 5. Qxf3 {[%emt 0:00:00]} Nf6 {[%emt 0:00:00]} 6. e5 {
[%emt 0:00:00]} Nfd7 {[%emt 0:00:00]} 7. d4 {[%emt 0:00:00]} e6 {[%emt 0:00:00]
} 8. Ne2 {[%emt 0:00:00]} c5 {[%emt 0:00:00]} 9. c3 {[%emt 0:00:00]} Nc6 {
[%emt 0:00:00]} 10. Bd2 {[%emt 0:00:00]} Qb6 {[%emt 0:00:00]} 11. Rb1 {[%emt 0:
00:00]} cxd4 {[%emt 0:00:00]} 12. cxd4 {[%emt 0:00:00]} Nxd4 {[%emt 0:00:00]}
13. Nxd4 {[%emt 0:00:00]} Qxd4 {[%emt 0:00:00]} 14. Bc3 {[%emt 0:00:00]} Bb4 {
[%emt 0:00:00]} 15. Qe3 {[%emt 0:00:00]} Qxe3+ {[%emt 0:00:00]} 16. fxe3 {
[%emt 0:00:00]} Bxc3+ {[%emt 0:00:00]} 17. bxc3 {[%emt 0:00:00]} O-O-O {
[%emt 0:00:00]} 18. c4 {[%emt 0:01:28]} Nxe5 {[%emt 0:00:57]} 19. cxd5 {
[%emt 0:00:00]} Rxd5 {[%emt 0:01:16]} 20. Be2 {[%emt 0:00:40]} Ra5 {[%emt 0:00:
03]} 21. Rb2 {[%emt 0:01:07]} Rd8 {[%emt 0:01:13]} 22. O-O {[%emt 0:03:18]} Rd6
{[%emt 0:08:31]} 23. Bb5 {[%emt 0:02:45]} Kd8 {[%emt 0:03:01]} 24. Rc1 {
[%emt 0:00:39]} a6 {[%emt 0:01:11]} 25. Be2 {[%emt 0:05:32]} Rc6 {[%emt 0:00:
00]} 26. Rd1+ {[%emt 0:00:00]} Kc7 {[%emt 0:00:00]} 27. Kf2 {[%emt 0:00:00]}
Rac5 {[%emt 0:00:00]} 28. a4 {[%emt 0:00:00]} Rc2 {[%emt 0:00:00]} 29. Rb4 {
[%emt 0:00:00]} Ra2 {[%emt 0:00:00]} 30. Ke1 {[%emt 0:00:00]} Rcc2 {[%emt 0:00:
00]} 31. Bf1 {[%emt 0:05:50]} Rab2 {[%emt 0:02:11]} 32. Rbd4 {[%emt 0:00:00]}
f5 {[%emt 0:00:00]} 33. Rd8 {[%emt 0:00:00]} Rc3 {[%emt 0:00:00]} 34. R8d2 {
[%emt 0:00:00]} Rxe3+ {[%emt 0:00:00]} 35. Be2 {[%emt 0:00:00]} Rxd2 {[%emt 0:
00:00]} 36. Kxd2 {[%emt 0:00:00]} Re4 {[%emt 0:00:00]} 0-1

[Event "6e Open International d'Echecs des Sable"]
[Site "Sables d'Olonne, France"]
[Date "2019.07.17"]
[Round "6.1"]
[White "Duboue, Peio"]
[Black "Prie, Eric"]
[Result "1/2-1/2"]
[ECO "B01"]
[WhiteElo "2409"]
[BlackElo "2436"]
[Annotator "jeanluc"]
[PlyCount "133"]
[EventDate "2019.??.??"]
[TimeControl "1/40:0"]
[WhiteClock "0:03:48"]
[BlackClock "0:33:10"]

1. e4 {[%emt 0:00:00]} d5 {[%emt 0:00:00]} 2. exd5 {[%emt 0:00:00]} Qxd5 {
[%emt 0:00:00]} 3. Nf3 {[%emt 0:00:00]} Bg4 {[%emt 0:00:00]} 4. Be2 {[%emt 0:
00:00]} Nc6 {[%emt 0:00:00]} 5. d4 {[%emt 0:00:00]} O-O-O {[%emt 0:00:00]} 6.
c4 {[%emt 0:00:00]} Qd7 {[%emt 0:00:00]} 7. d5 {[%emt 0:00:00]} Bxf3 {[%emt 0:
00:00]} 8. Bxf3 {[%emt 0:00:00]} Ne5 {[%emt 0:00:00]} 9. Nc3 {[%emt 0:00:00]}
Nf6 {[%emt 0:00:00]} 10. O-O {[%emt 0:00:00]} e6 {[%emt 0:00:00]} 11. Bf4 {
[%emt 0:00:00]} Bd6 {[%emt 0:00:00]} 12. Bxe5 {[%emt 0:00:00]} Bxe5 {[%emt 0:
00:00]} 13. Re1 {[%emt 0:00:00]} Bxc3 {[%emt 0:00:00]} 14. bxc3 {[%emt 0:00:00]
} exd5 {[%emt 0:00:00]} 15. cxd5 {[%emt 0:00:00]} Rhe8 {[%emt 0:00:00]} 16.
Rxe8 {[%emt 0:00:00]} Rxe8 {[%emt 0:00:00]} 17. a4 {[%emt 0:00:00]} a5 {
[%emt 0:00:00]} 18. Qd4 {[%emt 0:00:00]} Qd6 {[%emt 0:00:00]} 19. h3 {[%emt 0:
00:00]} b6 {[%emt 0:00:00]} 20. c4 {[%emt 0:00:00]} Qb4 {[%emt 0:00:00]} 21.
Kh2 {[%emt 0:00:00]} Re1 {[%emt 0:00:00]} 22. Rxe1 {[%emt 0:00:00]} Qxe1 {
[%emt 0:00:00]} 23. d6 {[%emt 0:00:00]} Qb4 {[%emt 0:00:00]} 24. dxc7 {[%emt 0:
00:00]} Kxc7 {[%emt 0:00:00]} 25. g3 {[%emt 0:00:00]} Qd6 {[%emt 0:00:00]} 26.
Qe3 {[%emt 0:00:00]} h5 {[%emt 0:00:00]} 27. Kg2 {[%emt 0:00:00]} g6 {[%emt 0:
00:00]} 28. c5 {[%emt 0:00:00]} Qxc5 {[%emt 0:00:00]} 29. Qf4+ {[%emt 0:00:00]}
Qd6 {[%emt 0:00:00]} 30. Qc4+ {[%emt 0:00:00]} Kd8 {[%emt 0:00:00]} 31. Qxf7 {
[%emt 0:00:00]} g5 {[%emt 0:00:00]} 32. Bxh5 {[%emt 0:00:00]} Nxh5 {[%emt 0:00:
00]} 33. Qxh5 {[%emt 0:00:00]} Qd5+ {[%emt 0:00:00]} 34. Kh2 {[%emt 0:00:00]}
b5 {[%emt 0:00:00]} 35. axb5 {[%emt 0:00:00]} Qxb5 {[%emt 0:00:00]} 36. h4 {
[%emt 0:00:00]} Qc5 {[%emt 0:00:00]} 37. Kh3 {[%emt 0:03:21]} Qc8+ {[%emt 0:00:
00]} 38. Kg2 {[%emt 0:01:23]} Qc6+ {[%emt 0:00:00]} 39. Kg1 {[%emt 0:01:00]}
Qc1+ {[%emt 0:00:00]} 40. Kg2 {[%emt 0:00:54]} Qc6+ {[%emt 0:00:00]} 41. Kg1 {
[%emt 0:00:38]} Qc1+ {[%emt 0:00:00]} 42. Kh2 {[%emt 0:00:25]} Qc5 {[%emt 0:00:
00]} 43. Qh8+ {[%emt 0:02:29]} Ke7 {[%emt 0:00:00]} 44. Qg7+ {[%emt 0:01:22]}
Ke6 {[%emt 0:00:00]} 45. Qg6+ {[%emt 0:08:28]} Ke7 {[%emt 0:00:00]} 46. Qg7+ {
[%emt 0:00:31]} Ke6 {[%emt 0:00:00]} 47. Qg6+ {[%emt 0:00:14]} Ke7 {[%emt 0:00:
00]} 48. Qe4+ {[%emt 0:01:42]} Kf8 {[%emt 0:00:00]} 49. Qf3+ {[%emt 0:01:32]}
Kg7 {[%emt 0:00:00]} 50. hxg5 {[%emt 0:06:52]} Qxg5 {[%emt 0:00:19]} 51. Qe4 {
[%emt 0:01:17]} Qb5 {[%emt 0:02:32]} 52. f4 {[%emt 0:00:00]} a4 {[%emt 0:00:00]
} 53. g4 {[%emt 0:00:00]} a3 {[%emt 0:00:00]} 54. Qe7+ {[%emt 0:00:00]} Kg8 {
[%emt 0:00:00]} 55. Qe6+ {[%emt 0:00:00]} Kg7 {[%emt 0:00:00]} 56. Qe7+ {
[%emt 0:00:00]} Kg8 {[%emt 0:00:00]} 57. Qxa3 {[%emt 0:01:31]} Qe2+ {[%emt 0:
00:00]} 58. Kh3 {[%emt 0:01:11]} Qf1+ {[%emt 0:00:00]} 59. Kh4 {[%emt 0:00:40]}
Qxf4 {[%emt 0:00:17]} 60. Qa8+ {[%emt 0:00:12]} Kg7 {[%emt 0:02:31]} 61. Qb7+ {
[%emt 0:00:12]} Kg6 {[%emt 0:03:03]} 62. Qc6+ {[%emt 0:00:19]} Kg7 {[%emt 0:00:
22]} 63. Qd7+ {[%emt 0:00:16]} Kg6 {[%emt 0:00:31]} 64. Qe6+ {[%emt 0:02:56]}
Kg7 {[%emt 0:00:18]} 65. Qd7+ {[%emt 0:00:59]} Kg6 {[%emt 0:00:37]} 66. Qe8+ {
[%emt 0:00:13]} Kg7 {[%emt 0:00:20]} 67. Qd7+ {[%emt 0:00:15]} 1/2-1/2

[Event "6e Open International d'Echecs des Sable"]
[Site "Sables d'Olonne, France"]
[Date "2019.07.17"]
[Round "6.3"]
[White "Eugene, Floryan"]
[Black "Mariette, Lucas"]
[Result "1-0"]
[ECO "C50"]
[WhiteElo "2300"]
[BlackElo "2244"]
[Annotator "jeanluc"]
[PlyCount "99"]
[EventDate "2019.??.??"]
[TimeControl "1/40:0"]
[WhiteClock "0:38:24"]
[BlackClock "0:22:04"]

1. e4 {[%emt 0:00:00]} e5 {[%emt 0:00:00]} 2. Nf3 {[%emt 0:00:00]} Nc6 {
[%emt 0:00:00]} 3. Bc4 {[%emt 0:00:00]} Bc5 {[%emt 0:00:00]} 4. O-O {[%emt 0:
00:00]} Nf6 {[%emt 0:00:00]} 5. d3 {[%emt 0:00:00]} a6 {[%emt 0:00:00]} 6. a4 {
[%emt 0:00:00]} O-O {[%emt 0:00:00]} 7. Bg5 {[%emt 0:00:00]} h6 {[%emt 0:00:00]
} 8. Bh4 {[%emt 0:00:00]} g5 {[%emt 0:00:00]} 9. Bg3 {[%emt 0:00:00]} d6 {
[%emt 0:00:00]} 10. c3 {[%emt 0:00:00]} Bg4 {[%emt 0:00:00]} 11. h3 {[%emt 0:
00:00]} Bh5 {[%emt 0:00:00]} 12. Nbd2 {[%emt 0:00:00]} Ba7 {[%emt 0:00:00]} 13.
b4 {[%emt 0:00:00]} Kg7 {[%emt 0:00:00]} 14. b5 {[%emt 0:00:00]} axb5 {[%emt 0:
00:00]} 15. axb5 {[%emt 0:00:00]} Ne7 {[%emt 0:00:00]} 16. d4 {[%emt 0:00:00]}
Ng6 {[%emt 0:00:00]} 17. Be2 {[%emt 0:00:00]} Bxf3 {[%emt 0:00:00]} 18. Bxf3 {
[%emt 0:00:00]} Qd7 {[%emt 0:00:00]} 19. Qb3 {[%emt 0:00:00]} h5 {[%emt 0:00:
00]} 20. Ra4 {[%emt 0:00:00]} g4 {[%emt 0:00:00]} 21. hxg4 {[%emt 0:00:00]}
hxg4 {[%emt 0:00:00]} 22. Be2 {[%emt 0:00:00]} Bb6 {[%emt 0:00:00]} 23. Rfa1 {
[%emt 0:00:00]} Rxa4 {[%emt 0:00:00]} 24. Rxa4 {[%emt 0:00:00]} exd4 {[%emt 0:
00:00]} 25. cxd4 {[%emt 0:00:00]} d5 {[%emt 0:00:00]} 26. Be5 {[%emt 0:00:00]}
Nxe5 {[%emt 0:00:00]} 27. dxe5 {[%emt 0:00:00]} Nxe4 {[%emt 0:00:59]} 28. Nxe4
{[%emt 0:00:00]} dxe4 {[%emt 0:01:33]} 29. Rxe4 {[%emt 0:00:00]} Bxf2+ {
[%emt 0:11:40]} 30. Kxf2 {[%emt 0:00:00]} Qf5+ {[%emt 0:00:11]} 31. Ke3 {
[%emt 0:00:07]} Rd8 {[%emt 0:02:09]} 32. Rxg4+ {[%emt 0:00:50]} Kh6 {[%emt 0:
01:25]} 33. Qc3 {[%emt 0:01:00]} Rd5 {[%emt 0:00:30]} 34. Qc1 {[%emt 0:02:51]}
Rd3+ {[%emt 0:02:08]} 35. Bxd3 {[%emt 0:00:14]} Qxg4 {[%emt 0:00:14]} 36. Qf1 {
[%emt 0:02:21]} Kg7 {[%emt 0:01:33]} 37. Qf6+ {[%emt 0:01:19]} Kg8 {[%emt 0:01:
06]} 38. Qf3 {[%emt 0:01:36]} Qg5+ {[%emt 0:00:26]} 39. Kd4 {[%emt 0:00:34]} b6
{[%emt 0:01:22]} 40. g3 {[%emt 0:02:35]} Qd2 {[%emt 0:00:42]} 41. Qf4 {[%emt 0:
03:29]} Qb2+ {[%emt 0:00:00]} 42. Ke3 {[%emt 0:00:00]} Qc3 {[%emt 0:00:00]} 43.
Ke2 {[%emt 0:00:00]} Qb2+ {[%emt 0:00:00]} 44. Kf1 {[%emt 0:00:00]} Qa1+ {
[%emt 0:00:00]} 45. Kg2 {[%emt 0:00:00]} Qa8+ {[%emt 0:00:00]} 46. Kh2 {
[%emt 0:00:00]} Qa2+ {[%emt 0:00:00]} 47. Kh3 {[%emt 0:00:00]} Qd5 {[%emt 0:00:
00]} 48. Bc4 {[%emt 0:00:00]} Qh1+ {[%emt 0:00:00]} 49. Kg4 {[%emt 0:00:00]}
Qd1+ {[%emt 0:00:00]} 50. Kh4 {[%emt 0:00:00]} 1-0

[Event "6e Open International d'Echecs des Sable"]
[Site "Sables d'Olonne, France"]
[Date "2019.07.17"]
[Round "6.4"]
[White "Vidal, Llewellyn"]
[Black "Maleki, Nicolas"]
[Result "1-0"]
[ECO "D10"]
[WhiteElo "2336"]
[BlackElo "2088"]
[Annotator "jeanluc"]
[PlyCount "105"]
[EventDate "2019.??.??"]
[TimeControl "1/40:0"]
[WhiteClock "0:10:23"]
[BlackClock "0:01:50"]

1. c4 {[%emt 0:00:00]} c6 {[%emt 0:00:00]} 2. d4 {[%emt 0:00:00]} d5 {[%emt 0:
00:00]} 3. cxd5 {[%emt 0:00:00]} cxd5 {[%emt 0:00:00]} 4. Bg5 {[%emt 0:00:00]}
h6 {[%emt 0:00:00]} 5. Bh4 {[%emt 0:00:00]} Qb6 {[%emt 0:00:00]} 6. Nc3 {
[%emt 0:00:00]} e6 {[%emt 0:00:00]} 7. Qd2 {[%emt 0:00:00]} Nc6 {[%emt 0:00:00]
} 8. e3 {[%emt 0:00:00]} Bd7 {[%emt 0:00:00]} 9. Nf3 {[%emt 0:00:00]} Nge7 {
[%emt 0:00:00]} 10. Bd3 {[%emt 0:00:00]} Nb4 {[%emt 0:00:00]} 11. Ne5 {[%emt 0:
00:00]} Nxd3+ {[%emt 0:00:00]} 12. Qxd3 {[%emt 0:00:00]} Nf5 {[%emt 0:00:00]}
13. Nxd7 {[%emt 0:00:00]} Kxd7 {[%emt 0:00:00]} 14. Bg3 {[%emt 0:00:00]} Nxg3 {
[%emt 0:00:00]} 15. fxg3 {[%emt 0:00:00]} Rc8 {[%emt 0:00:00]} 16. O-O {
[%emt 0:00:00]} f5 {[%emt 0:00:00]} 17. g4 {[%emt 0:00:00]} g6 {[%emt 0:00:00]}
18. Kh1 {[%emt 0:00:00]} Qa6 {[%emt 0:00:00]} 19. Nb5 {[%emt 0:00:00]} Be7 {
[%emt 0:00:00]} 20. a4 {[%emt 0:00:00]} Rc6 {[%emt 0:00:00]} 21. gxf5 {[%emt 0:
00:00]} gxf5 {[%emt 0:00:00]} 22. g4 {[%emt 0:00:00]} fxg4 {[%emt 0:00:00]} 23.
Rf7 {[%emt 0:00:00]} Rf8 {[%emt 0:00:00]} 24. Rxf8 {[%emt 0:00:00]} Bxf8 {
[%emt 0:00:00]} 25. e4 {[%emt 0:00:00]} dxe4 {[%emt 0:04:50]} 26. Qxe4 {
[%emt 0:00:00]} Rc4 {[%emt 0:00:56]} 27. Qh7+ {[%emt 0:00:00]} Be7 {[%emt 0:00:
44]} 28. d5 {[%emt 0:00:00]} exd5 {[%emt 0:00:26]} 29. Re1 {[%emt 0:00:00]} Re4
{[%emt 0:01:06]} 30. Rc1 {[%emt 0:00:00]} Qf6 {[%emt 0:03:30]} 31. Kg1 {
[%emt 0:00:00]} Re2 {[%emt 0:07:14]} 32. Rc7+ {[%emt 0:09:22]} Ke6 {[%emt 0:01:
13]} 33. Qg8+ {[%emt 0:05:56]} Ke5 {[%emt 0:00:50]} 34. Rxe7+ {[%emt 0:00:21]}
Qxe7 {[%emt 0:00:14]} 35. Qh8+ {[%emt 0:04:12]} Qf6 {[%emt 0:01:29]} 36. Qe8+ {
[%emt 0:00:16]} Qe6 {[%emt 0:00:14]} 37. Qxe6+ {[%emt 0:00:16]} Kxe6 {[%emt 0:
00:21]} 38. Nd4+ {[%emt 0:00:19]} Ke5 {[%emt 0:00:46]} 39. Nxe2 {[%emt 0:00:11]
} Ke4 {[%emt 0:01:13]} 40. Nc3+ {[%emt 0:00:50]} Kd4 {[%emt 0:00:58]} 41. Kf2 {
[%emt 0:00:00]} Kc4 {[%emt 0:00:00]} 42. Kg3 {[%emt 0:00:00]} d4 {[%emt 0:00:
00]} 43. Ne4 {[%emt 0:00:00]} Kb4 {[%emt 0:00:00]} 44. Nd2 {[%emt 0:00:08]}
Kxa4 {[%emt 0:00:00]} 45. Kxg4 {[%emt 0:00:12]} Kb4 {[%emt 0:00:00]} 46. Kh5 {
[%emt 0:00:39]} a5 {[%emt 0:00:00]} 47. Kxh6 {[%emt 0:00:12]} a4 {[%emt 0:00:
00]} 48. Kg5 {[%emt 0:00:14]} a3 {[%emt 0:00:17]} 49. bxa3+ {[%emt 0:00:12]}
Kxa3 {[%emt 0:01:51]} 50. h4 {[%emt 0:00:12]} Kb2 {[%emt 0:03:16]} 51. h5 {
[%emt 0:00:13]} Kc2 {[%emt 0:00:15]} 52. Ne4 {[%emt 0:00:49]} Kd3 {[%emt 0:01:
07]} 53. Kf4 {[%emt 0:00:23]} 1-0

[Event "6e Open International d'Echecs des Sable"]
[Site "Sables d'Olonne, France"]
[Date "2019.07.17"]
[Round "6.5"]
[White "Lucas, Arthur"]
[Black "Bujisho, Benjamin"]
[Result "1/2-1/2"]
[ECO "B09"]
[WhiteElo "2286"]
[BlackElo "2326"]
[Annotator "jeanluc"]
[PlyCount "55"]
[EventDate "2019.??.??"]
[TimeControl "1/40:0"]
[WhiteClock "0:00:56"]
[BlackClock "0:23:22"]

1. e4 {[%emt 0:00:00]} d6 {[%emt 0:00:00]} 2. d4 {[%emt 0:00:00]} Nf6 {[%emt 0:
00:00]} 3. Nc3 {[%emt 0:00:00]} g6 {[%emt 0:00:00]} 4. f4 {[%emt 0:00:00]} Bg7
{[%emt 0:00:00]} 5. Nf3 {[%emt 0:00:00]} O-O {[%emt 0:00:00]} 6. e5 {[%emt 0:
00:00]} dxe5 {[%emt 0:00:00]} 7. fxe5 {[%emt 0:00:00]} Nd5 {[%emt 0:00:00]} 8.
Ne4 {[%emt 0:00:00]} Bf5 {[%emt 0:00:00]} 9. Ng3 {[%emt 0:00:00]} Bg4 {[%emt 0:
00:00]} 10. Be2 {[%emt 0:00:00]} c5 {[%emt 0:00:00]} 11. O-O {[%emt 0:00:00]}
cxd4 {[%emt 0:00:00]} 12. Qxd4 {[%emt 0:00:00]} Qb6 {[%emt 0:00:00]} 13. Qxb6 {
[%emt 0:00:00]} Nxb6 {[%emt 0:00:00]} 14. Bf4 {[%emt 0:00:00]} Nc6 {[%emt 0:00:
00]} 15. h3 {[%emt 0:00:00]} Bxf3 {[%emt 0:00:00]} 16. Bxf3 {[%emt 0:00:00]}
Rad8 {[%emt 0:00:00]} 17. Bxc6 {[%emt 0:01:28]} bxc6 {[%emt 0:00:00]} 18. Rae1
{[%emt 0:01:29]} h6 {[%emt 0:00:00]} 19. b3 {[%emt 0:05:02]} Nd5 {[%emt 0:00:
00]} 20. Bd2 {[%emt 0:00:58]} Nc7 {[%emt 0:00:00]} 21. Bb4 {[%emt 0:03:45]} Rd7
{[%emt 0:00:00]} 22. Rf3 {[%emt 0:00:49]} Ne6 {[%emt 0:00:00]} 23. Rc3 {
[%emt 0:00:59]} Rc8 {[%emt 0:00:00]} 24. Rc4 {[%emt 0:00:43]} c5 {[%emt 0:00:
00]} 25. Bc3 {[%emt 0:00:43]} Rd5 {[%emt 0:00:00]} 26. Nf1 {[%emt 0:00:43]} h5
{[%emt 0:00:00]} 27. Ne3 {[%emt 0:00:25]} Rd7 {[%emt 0:00:00]} 28. Re4 {
[%emt 0:00:48]} 1/2-1/2

[Event "6e Open International d'Echecs des Sable"]
[Site "Sables d'Olonne, France"]
[Date "2019.07.17"]
[Round "6.6"]
[White "Renault, Jerome"]
[Black "Rollot, Florence"]
[Result "1-0"]
[ECO "E91"]
[WhiteElo "2097"]
[BlackElo "1899"]
[Annotator "jeanluc"]
[PlyCount "77"]
[EventDate "2019.??.??"]
[TimeControl "1/40:0"]
[WhiteClock "0:06:57"]
[BlackClock "0:01:52"]

1. d4 {[%emt 0:00:00]} Nf6 {[%emt 0:00:00]} 2. Nf3 {[%emt 0:00:00]} c5 {
[%emt 0:00:00]} 3. d5 {[%emt 0:00:00]} d6 {[%emt 0:00:00]} 4. c4 {[%emt 0:00:
00]} g6 {[%emt 0:00:00]} 5. Nc3 {[%emt 0:00:00]} Bg7 {[%emt 0:00:00]} 6. e4 {
[%emt 0:00:00]} Bg4 {[%emt 0:00:00]} 7. Be2 {[%emt 0:00:00]} O-O {[%emt 0:00:
00]} 8. Qb3 {[%emt 0:00:00]} b6 {[%emt 0:00:00]} 9. h3 {[%emt 0:00:00]} Bxf3 {
[%emt 0:00:00]} 10. Bxf3 {[%emt 0:00:00]} Nbd7 {[%emt 0:00:00]} 11. O-O {
[%emt 0:00:00]} Ne8 {[%emt 0:00:00]} 12. Be2 {[%emt 0:00:00]} Nc7 {[%emt 0:00:
00]} 13. Bf4 {[%emt 0:00:00]} f5 {[%emt 0:00:00]} 14. exf5 {[%emt 0:00:00]}
Rxf5 {[%emt 0:00:00]} 15. Bh2 {[%emt 0:00:00]} Rf7 {[%emt 0:00:00]} 16. Rae1 {
[%emt 0:00:00]} Nf6 {[%emt 0:00:00]} 17. Bd1 {[%emt 0:00:00]} Qf8 {[%emt 0:00:
00]} 18. a4 {[%emt 0:00:00]} Kh8 {[%emt 0:00:00]} 19. Qc2 {[%emt 0:00:00]} Rb8
{[%emt 0:00:00]} 20. Ne2 {[%emt 0:00:00]} Nfe8 {[%emt 0:00:00]} 21. Nc3 {
[%emt 0:00:00]} Nf6 {[%emt 0:00:00]} 22. b3 {[%emt 0:00:00]} a6 {[%emt 0:00:00]
} 23. Qd3 {[%emt 0:00:00]} Nd7 {[%emt 0:00:00]} 24. f4 {[%emt 0:00:00]} Bd4+ {
[%emt 0:00:00]} 25. Kh1 {[%emt 0:00:00]} Qg7 {[%emt 0:00:00]} 26. Ne4 {[%emt 0:
00:00]} h6 {[%emt 0:00:00]} 27. Bc2 {[%emt 0:00:00]} Rg8 {[%emt 0:00:27]} 28.
g4 {[%emt 0:00:00]} Nf6 {[%emt 0:02:23]} 29. Ng3 {[%emt 0:00:00]} h5 {[%emt 0:
04:46]} 30. g5 {[%emt 0:00:00]} Nd7 {[%emt 0:00:26]} 31. Re6 {[%emt 0:01:45]}
Nf8 {[%emt 0:00:57]} 32. Re4 {[%emt 0:00:32]} Nd7 {[%emt 0:03:38]} 33. h4 {
[%emt 0:00:29]} a5 {[%emt 0:01:31]} 34. Qe2 {[%emt 0:02:16]} Qf8 {[%emt 0:02:
16]} 35. f5 {[%emt 0:03:31]} Ne5 {[%emt 0:02:36]} 36. fxg6 {[%emt 0:06:36]}
Rxf1+ {[%emt 0:02:32]} 37. Nxf1 {[%emt 0:00:50]} Nxg6 {[%emt 0:01:45]} 38.
Qxh5+ {[%emt 0:00:49]} Kg7 {[%emt 0:00:11]} 39. Rf4 {[%emt 0:02:15]} 1-0

[Event "6e Open International d'Echecs des Sable"]
[Site "Sables d'Olonne, France"]
[Date "2019.07.17"]
[Round "6.7"]
[White "Dalaud, Dorian"]
[Black "Delabbey, Florian"]
[Result "1-0"]
[ECO "B31"]
[WhiteElo "2220"]
[BlackElo "1904"]
[Annotator "jeanluc"]
[PlyCount "49"]
[EventDate "2019.??.??"]
[TimeControl "1/40:0"]
[WhiteClock "0:30:32"]
[BlackClock "0:27:46"]

1. e4 {[%emt 0:00:00]} c5 {[%emt 0:00:00]} 2. Nc3 {[%emt 0:00:00]} Nc6 {
[%emt 0:00:00]} 3. Bb5 {[%emt 0:00:00]} Nd4 {[%emt 0:00:00]} 4. Nf3 {[%emt 0:
00:00]} g6 {[%emt 0:00:00]} 5. Nxd4 {[%emt 0:00:00]} cxd4 {[%emt 0:00:00]} 6.
Ne2 {[%emt 0:00:00]} Bg7 {[%emt 0:00:00]} 7. O-O {[%emt 0:00:00]} e6 {[%emt 0:
00:00]} 8. d3 {[%emt 0:00:00]} Ne7 {[%emt 0:00:00]} 9. Bg5 {[%emt 0:00:00]} O-O
{[%emt 0:00:00]} 10. Qd2 {[%emt 0:00:00]} d6 {[%emt 0:00:00]} 11. f4 {[%emt 0:
00:00]} Qc7 {[%emt 0:00:00]} 12. Kh1 {[%emt 0:00:00]} d5 {[%emt 0:00:00]} 13.
Rae1 {[%emt 0:00:00]} Nc6 {[%emt 0:00:00]} 14. f5 {[%emt 0:00:00]} dxe4 {
[%emt 0:00:00]} 15. fxg6 {[%emt 0:00:00]} hxg6 {[%emt 0:00:00]} 16. dxe4 {
[%emt 0:00:00]} e5 {[%emt 0:00:00]} 17. Bf6 {[%emt 0:00:00]} Be6 {[%emt 0:00:
00]} 18. Qg5 {[%emt 0:00:00]} Bxf6 {[%emt 0:00:00]} 19. Rxf6 {[%emt 0:00:00]}
Kg7 {[%emt 0:00:00]} 20. Ref1 {[%emt 0:00:00]} a6 {[%emt 0:00:00]} 21. Bxc6 {
[%emt 0:00:00]} bxc6 {[%emt 0:00:00]} 22. Ng3 {[%emt 0:00:00]} Rh8 {[%emt 0:00:
00]} 23. Rxe6 {[%emt 0:00:00]} fxe6 {[%emt 0:00:00]} 24. Rf6 {[%emt 0:00:00]}
Rh6 {[%emt 0:00:00]} 25. Rxe6 {[%emt 0:00:00]} 1-0

[Event "6e Open International d'Echecs des Sable"]
[Site "Sables d'Olonne, France"]
[Date "2019.07.17"]
[Round "7.1"]
[White "Eugene, Floryan"]
[Black "Colin, Vincent"]
[Result "1/2-1/2"]
[ECO "A10"]
[WhiteElo "2300"]
[BlackElo "2370"]
[Annotator "jeanluc"]
[PlyCount "20"]
[EventDate "2019.??.??"]
[TimeControl "1/40:0"]
[WhiteClock "1:29:48"]
[BlackClock "1:32:00"]

1. c4 {[%emt 0:00:00]} b6 {[%emt 0:00:00]} 2. Nf3 {[%emt 0:00:00]} Bb7 {
[%emt 0:00:00]} 3. e3 {[%emt 0:00:00]} e6 {[%emt 0:00:00]} 4. Be2 {[%emt 0:00:
00]} f5 {[%emt 0:00:00]} 5. b3 {[%emt 0:00:00]} Nf6 {[%emt 0:00:00]} 6. Bb2 {
[%emt 0:00:00]} Be7 {[%emt 0:00:00]} 7. O-O {[%emt 0:00:00]} O-O {[%emt 0:00:
00]} 8. Nc3 {[%emt 0:00:00]} a5 {[%emt 0:00:00]} 9. d4 {[%emt 0:00:00]} Na6 {
[%emt 0:00:00]} 10. Ne5 {[%emt 0:00:00]} Qe8 {[%emt 0:00:00]} 1/2-1/2